[Event "TUR-ch Veterans 2020"]
[Site "Antalya-Belek"]
[Date "2020.01.24"]
[Round "8"]
[White "Bapoglu, Ibrahim"]
[Black "Oney, Riza"]
[Result "0-1"]
[ECO "B58"]
[WhiteElo "1576"]
[BlackElo "1771"]
[Annotator "NA RC"]
[PlyCount "130"]
[EventDate "2020.01.19"]
[EventCountry "TUR"]
[SourceTitle "playchess.com"]
[Source "ChessBase"]
[SourceQuality "1"]
[TimeControl "5400+30"]

1. e4 {[%emt 0:00:30]} c5 {[%emt 0:00:30]} 2. Nf3 {[%emt 0:00:00]} Nc6 {[%emt 0:00:30]} 3. d4 {[%emt 0:00:00]} cxd4 {[%emt 0:00:30]} 4. Nxd4 {[%emt 0:00:30]} Nf6 {[%emt 0:00:30]} 5. Nc3 {[%emt 0:00:30]} e5 {[%emt 0:00:00]} 6. Nf3 {[%emt 0:00:30]} d6 {[%emt 0:00:00]} 7. Be2 {[%emt 0:01:30]} Be7 {[%emt 0:00:30]} 8. O-O {[%emt 0:00:30]} O-O {[%emt 0:00:30]} 9. h3 {[%emt 0:00:30]} Be6 {[%emt 0:00:30]} 10. Ng5 {[%emt 0:01:30]} Nd4 {[%emt 0:04:30]} 11. Nxe6 {[%emt 0:01:30]} fxe6 {[%emt 0:00:30]} 12. Bc4 {[%emt 0:00:30]} d5 {[%emt 0:03:30]} 13. exd5 {[%emt 0:01:30]} exd5 {[%emt 0:01:30]} 14. Bb3 {[%emt 0:01:30]} Nxb3 {[%emt 0:02:30]} 15. axb3 {[%emt 0:00:30]} d4 {[%emt 0:04:30]} 16. Nb1 {[%emt 0:01:30]} a6 {[%emt 0:17:30]} 17. Qe2 {[%emt 0:00:30]} Bd6 {[%emt 0:10:30]} 18. Nd2 {[%emt 0:01:30]} Rc8 {[%emt 0:07:30]} 19. Ne4 {[%emt 0:01:30]} Nxe4 {[%emt 0:03:30]} 20. Qxe4 {[%emt 0:00:00]} Qc7 {[%emt 0:01:30]} 21. c4 {[%emt 0:02:00]} dxc3 {[%emt 0:03:30]} 22. bxc3 {[%emt 0:00:30]} Qxc3 {[%emt 0:01:30]} 23. Qd5+ {[%emt 0:03:30]} Kh8 {[%emt 0:01:30]} 24. Be3 {[%emt 0:03:30]} Qc6 {[%emt 0:00:30]} 25. Rad1 {[%emt 0:05:30]} Qxd5 {[%emt 0:02:30]} 26. Rxd5 {[%emt 0:00:00]} Rc6 {[%emt 0:04:30]} 27. Rfd1 {[%emt 0:00:00]} Bc7 {[%emt 0:00:30]} 28. b4 {[%emt 0:04:30]} h6 {[%emt 0:03:30]} 29. b5 {[%emt 0:00:30]} axb5 {[%emt 0:00:30]} 30. Rxb5 {[%emt 0:00:30]} b6 {[%emt 0:00:30]} 31. g3 {[%emt 0:02:30]} Kg8 {[%emt 0:00:30]} 32. Rc1 {[%emt 0:03:30]} Rxc1+ {[%emt 0:01:30]} 33. Bxc1 {[%emt 0:00:30]} Ra8 {[%emt 0:00:30]} 34. Bd2 {[%emt 0:02:30]} Kf7 {[%emt 0:00:30]} 35. Kg2 {[%emt 0:00:30]} Ke6 {[%emt 0:00:30]} 36. Kf3 {[%emt 0:01:30]} Rd8 {[%emt 0:01:30]} 37. Be3 {[%emt 0:00:30]} Rd5 {[%emt 0:00:30]} 38. Rb3 {[%emt 0:01:30]} b5 {[%emt 0:00:00]} 39. g4 {[%emt 0:01:30]} Bd6 {[%emt 0:01:00]} 40. h4 {[%emt 0:01:30]} b4 {[%emt 0:07:35]} 41. Ke4 {[%emt 0:02:30]} Ra5 {[%emt 0:00:09]} 42. Rb1 {[%emt 0:10:30]} Ra4 {[%emt 0:00:46]} 43. Rb3 {[%emt 0:02:30]} Ra3 {[%emt 0:00:50]} 44. Rb2 {[%emt 0:01:30]} b3 {[%emt 0:00:50]} 45. f3 {[%emt 0:00:30]} Be7 {[%emt 0:01:08]} 46. g5 {[%emt 0:03:30]} hxg5 {[%emt 0:04:23]} 47. hxg5 {[%emt 0:02:30]} g6 {[%emt 0:00:16]} 48. Kd3 {[%emt 0:02:30]} Kf5 {[%emt 0:02:38]} 49. Kc4 {[%emt 0:01:30]} Bxg5 {[%emt 0:00:20]} 50. Bc5 {[%emt 0:00:30]} Ra4+ {[%emt 0:00:51]} 51. Kxb3 {[%emt 0:00:00]} Rf4 {[%emt 0:00:18]} 52. Rf2 {[%emt 0:00:00]} Bh4 {[%emt 0:00:50]} 53. Rf1 {[%emt 0:01:30]} e4 {[%emt 0:01:23]} 54. fxe4+ {[%emt 0:00:30]} Kxe4 {[%emt 0:00:01]} 55. Rxf4+ {[%emt 0:02:30]} Kxf4 {[%emt 0:00:43]} 56. Kc2 {[%emt 0:00:30]} Kf3 {[%emt 0:01:09]} 57. Kd1 {[%emt 0:00:30]} Bf6 {[%emt 0:01:18]} 58. Ke1 {[%emt 0:01:30]} g5 {[%emt 0:00:08]} 59. Kf1 {[%emt 0:00:30]} g4 {[%emt 0:00:01]} 60. Bd6 {[%emt 0:00:30]} Bh4 {[%emt 0:00:02]} 61. Bc7 {[%emt 0:07:30]} Bg3 {[%emt 0:00:50]} 62. Bxg3 {[%emt 0:01:30]} Kxg3 {[%emt 0:00:35]} 63. Kg1 {[%emt 0:00:30]} Kh3 {[%emt 0:00:00]} 64. Kh1 {[%emt 0:00:00]} g3 {[%emt 0:00:13]} 65. Kg1 {[%emt 0:00:00]} g2 {[%emt 0:00:05]} 0-1

[Event "TUR-ch Veterans 2020"]
[Site "Antalya-Belek"]
[Date "2020.01.24"]
[Round "8"]
[White "Yilmaz, Huseyin"]
[Black "Topaloglu, Hayati"]
[Result "0-1"]
[ECO "D51"]
[WhiteElo "1280"]
[BlackElo "1750"]
[Annotator "NA RC"]
[PlyCount "56"]
[EventDate "2020.01.19"]
[EventCountry "TUR"]
[SourceTitle "playchess.com"]
[Source "ChessBase"]
[SourceQuality "1"]
[TimeControl "5400+30"]

1. d4 {[%emt 0:00:30]} d5 {[%emt 0:00:30]} 2. Nf3 {[%emt 0:00:00]} Nf6 {[%emt 0:00:30]} 3. c4 {[%emt 0:00:00]} c6 {[%emt 0:00:30]} 4. Nc3 {[%emt 0:00:30]} e6 {[%emt 0:00:30]} 5. Bg5 {[%emt 0:00:00]} Nbd7 {[%emt 0:00:30]} 6. e4 {[%emt 0:00:00]} dxe4 {[%emt 0:00:30]} 7. Nxe4 {[%emt 0:00:30]} Be7 {[%emt 0:00:30]} 8. Bd3 {[%emt 0:01:30]} h6 {[%emt 0:02:30]} 9. Bxf6 {[%emt 0:00:00]} Nxf6 {[%emt 0:00:00]} 10. O-O {[%emt 0:00:00]} b6 {[%emt 0:01:00]} 11. Qe2 {[%emt 0:01:30]} Bb7 {[%emt 0:01:30]} 12. Rad1 {[%emt 0:00:30]} O-O {[%emt 0:00:00]} 13. Nxf6+ {[%emt 0:02:30]} Bxf6 {[%emt 0:00:00]} 14. Qe4 {[%emt 0:02:30]} g6 {[%emt 0:01:30]} 15. Qg4 {[%emt 0:01:30]} Kg7 {[%emt 0:04:30]} 16. Ne5 {[%emt 0:01:30]} Bxe5 {[%emt 0:01:30]} 17. dxe5 {[%emt 0:00:30]} Qe7 {[%emt 0:00:30]} 18. f4 {[%emt 0:00:30]} f5 {[%emt 0:03:30]} 19. exf6+ {[%emt 0:02:30]} Rxf6 {[%emt 0:00:30]} 20. f5 {[%emt 0:03:30]} exf5 {[%emt 0:00:30]} 21. Bxf5 {[%emt 0:00:30]} Rd8 {[%emt 0:08:30]} 22. Rxd8 {[%emt 0:05:30]} Qxd8 {[%emt 0:00:30]} 23. Rd1 {[%emt 0:00:30]} Qe8 {[%emt 0:01:30]} 24. Rd7+ {[%emt 0:07:30]} Kf8 {[%emt 0:01:30]} 25. Qh4 {[%emt 0:01:30]} Qe3+ {[%emt 0:02:30]} 26. Qf2 {[%emt 0:00:30]} Qxf2+ {[%emt 0:00:30]} 27. Kxf2 {[%emt 0:00:00]} Rxf5+ {[%emt 0:00:30]} 28. Ke3 {[%emt 0:00:00]} Rf7 {[%emt 0:00:30]} 0-1

[Event "TUR-ch Veterans 2020"]
[Site "Antalya-Belek"]
[Date "2020.01.25"]
[Round "9"]
[White "Pekun, Cem"]
[Black "Muratoglu, Salih"]
[Result "1-0"]
[ECO "B00"]
[WhiteElo "2061"]
[BlackElo "1967"]
[Annotator "NA RC"]
[PlyCount "27"]
[EventDate "2020.01.19"]
[EventCountry "TUR"]
[SourceTitle "playchess.com"]
[Source "ChessBase"]
[SourceQuality "1"]
[TimeControl "5400+30"]

{[%evp 14,27,43,32767,32767,23,32767,32767,20,32767,14,13,293,277,548,553]} 1. e4 {[%emt 0:00:30]} d6 {[%emt 0:00:30]} 2. d4 {[%emt 0:00:30]} Nf6 {[%emt 0:00:30]} 3. Nc3 {[%emt 0:00:30]} Nc6 {[%emt 0:00:30]} 4. Nf3 {[%emt 0:08:30]} g6 {[%emt 0:01:30]} 5. h3 {[%emt 0:00:30]} Bg7 {[%emt 0:00:30]} 6. Be3 {[%emt 0:01:30]} a6 {[%emt 0:01:30]} 7. a4 {[%emt 0:00:30]} Bd7 {[%emt 0:00:30]} 8. Be2 {[%emt 0:01:30]} e5 {[%emt 0:00:30]} 9. dxe5 {[%emt 0:02:30]} dxe5 {[%emt 0:01:30]} 10. O-O {[%emt 0:00:30]} O-O {[%emt 0:00:00]} 11. Qd2 {[%emt 0:00:30]} Qe7 {[%emt 0:03:00]} 12. Bg5 {[%emt 0:05:30]} Rfd8 $2 {[%emt 0:02:30]} (12... Be6 $11 {and Black has nothing to worry.}) 13. Nd5 {[%emt 0:01:30] Double Attack} Qd6 $2 {[%emt 0:01:30]} (13... Qe6) 14. Nxf6+ $18 {[%emt 0:01:30]} 1-0

[Event "TUR-ch Veterans 2020"]
[Site "Antalya-Belek"]
[Date "2020.01.25"]
[Round "9"]
[White "Cetinkaya, Vedat Ali"]
[Black "Ozturk, Ali"]
[Result "1-0"]
[ECO "D47"]
[WhiteElo "2026"]
[BlackElo "1560"]
[Annotator "NA RC"]
[PlyCount "47"]
[EventDate "2020.01.19"]
[EventCountry "TUR"]
[SourceTitle "playchess.com"]
[Source "ChessBase"]
[SourceQuality "1"]
[TimeControl "5400+30"]

{[%evp 23,44,0,30,32767,32767,21,32767,32767,114,55,450,482,534,737,510,32767,32767,633,579,637,1272,448,464]} 1. d4 {[%emt 0:00:30]} Nf6 {[%emt 0:00:30]} 2. c4 {[%emt 0:00:30]} e6 {[%emt 0:00:30]} 3. e3 {[%emt 0:00:30]} d5 {[%emt 0:00:30]} 4. Nf3 {[%emt 0:00:30]} Be7 {[%emt 0:00:30]} 5. Nc3 {[%emt 0:00:00]} O-O {[%emt 0:01:30]} 6. Bd3 {[%emt 0:00:00]} c6 {[%emt 0:00:00]} 7. O-O {[%emt 0:00:30]} dxc4 {[%emt 0:00:00]} 8. Bxc4 {[%emt 0:00:00]} b5 {[%emt 0:00:30]} 9. Bd3 {[%emt 0:00:00]} Bb7 {[%emt 0:00:30]} 10. e4 {[%emt 0:03:30]} b4 {[%emt 0:01:30]} 11. Na4 {[%emt 0:02:30]} Nbd7 {[%emt 0:02:30]} 12. Qe2 {[%emt 0:09:30] D47: Semi-Slav: Meran System} (12. Qc2 h6 13. e5 Nd5 14. Qe2 Re8 15. Qe4 Nf8 16. Qg4 Kh8 17. Re1 f5 18. exf6 Nxf6 19. Qh3 c5 20. Ne5 Qxd4 21. Bxh6 gxh6 22. Qxh6+ N6h7 23. Bxh7 Nxh7 24. Rad1 {1-0 (24) Cheng,B (2529)-Maung,M (2274) Adelaide 2019}) 12... c5 {[%emt 0:24:30]} 13. e5 {[%emt 0:07:30]} Nd5 {[%emt 0:07:30]} 14. Nxc5 {[%emt 0:05:30]} Nxc5 {[%emt 0:01:30]} 15. dxc5 {[%emt 0:00:30]} Rc8 {[%emt 0:14:30]} (15... Qc7 $14) 16. Qe4 {[%emt 0:04:30]} f5 $2 $146 {[%emt 0:11:30]} ({Predecessor:} 16... g6 $16 {is more resistant.} 17. Bh6 Re8 18. Bb5 Bc6 19. Ba6 Rc7 {1-0 (46) Baymuratova,S (2119)-Orazmukhammedova,M (1928) Tashkent 2019}) 17. exf6 $1 {[%emt 0:00:30] Discovered Attack} Bxf6 {[%emt 0:00:30]} 18. Qxh7+ {[%emt 0:02:30]} Kf7 {[%emt 0:00:30]} 19. Bg5 {[%emt 0:02:30]} Bxg5 {[%emt 0:09:30]} 20. Qh5+ {[%emt 0:01:30]} Ke7 {[%emt 0:02:08]} 21. Qxg5+ {[%emt 0:00:30] Double Attack} Kf7 {[%emt 0:00:01]} 22. Qh5+ $18 {[%emt 0:03:30]} (22. Qg6+ $142 Ke7 23. Ng5) 22... Ke7 {[%emt 0:01:43]} 23. Ne5 {[%emt 0:00:30]} Nf4 {[%emt 0:01:13]} 24. Qg5+ {[%emt 0:01:30]} 1-0

[Event "TUR-ch Veterans 2020"]
[Site "Antalya-Belek"]
[Date "2020.01.25"]
[Round "9"]
[White "Yasin, Hur"]
[Black "Guner, Bulent"]
[Result "0-1"]
[ECO "C54"]
[WhiteElo "1936"]
[BlackElo "1964"]
[Annotator "NA RC"]
[PlyCount "88"]
[EventDate "2020.01.19"]
[EventCountry "TUR"]
[SourceTitle "playchess.com"]
[Source "ChessBase"]
[SourceQuality "1"]
[TimeControl "5400+30"]

{[%evp 14,87,31,2,14,8,32767,7,14,10,32767,32767,32767,32767,32767,0,5,-39,-64,-155,-167,-155,-155,-161,-174,-169,-140,32767,-190,32767,-180,32767,32767,-176,32767,32767,-102,32767,32767,32767,32767,-161,-58,-192,-212,-229,-286,-251,-208,-203,-234,-237,-185,-290,-408,32767,-214,-396,-230,-188,32767,-350,-418,-438,-403,-404,-420,32767,-437,-736,-843,-1222,32767,32767,-29990,-29990]} 1. e4 {[%emt 0:00:30]} e5 {[%emt 0:00:30]} 2. Bc4 {[%emt 0:00:30]} Nc6 {[%emt 0:01:30]} 3. Nf3 {[%emt 0:00:30]} Bc5 {[%emt 0:00:30]} 4. c3 {[%emt 0:03:30]} Nf6 {[%emt 0:00:30]} 5. d3 {[%emt 0:00:30]} a6 {[%emt 0:00:30]} 6. O-O {[%emt 0:00:00]} Ba7 {[%emt 0:01:30]} 7. Re1 {[%emt 0:01:00] C54: Giuoco Piano: 4 c3 Nf6, main lines with 5 d4 and 5 d3} d6 {[%emt 0:02:30]} 8. Bg5 {[%emt 0:03:30]} (8. Bb3 h6 9. Nbd2 g5 10. Nf1 g4 11. N3d2 h5 12. Nc4 h4 13. Be3 g3 14. Bxa7 gxh2+ 15. Nxh2 Nxa7 16. d4 {1-0 (57) Adams,M (2701)-McShane,L (2677) London 2019}) 8... h6 {[%emt 0:02:30]} 9. Bh4 {[%emt 0:00:00]} g5 {[%emt 0:09:30]} 10. Bg3 {[%emt 0:14:00]} Qe7 {[%emt 0:04:30]} 11. Nbd2 {[%emt 0:02:30]} Be6 $146 {[%emt 0:04:30]} ({Predecessor:} 11... h5 12. h4 g4 13. Nh2 Be6 14. Nhf1 O-O-O {1-0 (42) Yudin,S (2530)-Praggnanandhaa,R (2368) Voronezh 2016}) 12. d4 {[%emt 0:08:30]} Bxc4 {[%emt 0:04:30]} 13. Nxc4 {[%emt 0:00:30]} O-O-O {[%emt 0:01:30]} 14. d5 {[%emt 0:23:30]} ({Much worse is} 14. dxe5 $6 dxe5 15. Qe2 Nd7 $11) ({Better is} 14. b4 $16) 14... Nb8 $1 {[%emt 0:00:30]} 15. Nfd2 {[%emt 0:01:30]} h5 {[%emt 0:03:30]} 16. h3 {[%emt 0:01:30]} h4 {[%emt 0:01:30]} 17. Bh2 {[%emt 0:00:00]} g4 {[%emt 0:05:30]} 18. hxg4 {[%emt 0:00:00]} Rdg8 {[%emt 0:00:30]} 19. Ne3 {[%emt 0:17:30]} Bxe3 $1 {[%emt 0:00:30]} 20. Rxe3 {[%emt 0:00:00]} Rxg4 {[%emt 0:00:30]} ({Don't take} 20... Nxg4 21. Rh3 $17) 21. f3 {[%emt 0:03:30]} Rg6 {[%emt 0:02:30]} 22. Nf1 {[%emt 0:00:07]} Nh5 {[%emt 0:01:30]} 23. Re2 {[%emt 0:03:49]} Ng3 {[%emt 0:05:30]} 24. Rc2 {[%emt 0:00:22]} Nxf1 {[%emt 0:02:30]} (24... Nd7 $19 25. Ne3 Qg5) 25. Kxf1 {[%emt 0:01:30]} Nd7 {[%emt 0:00:00]} 26. b4 {[%emt 0:00:44]} Rhg8 {[%emt 0:03:00]} 27. a4 {[%emt 0:00:11] [#]} Nf6 {[%emt 0:00:30]} ({Black should try} 27... f5 $1 $17 {[%mdl 512]} 28. exf5 Rg5) 28. c4 {[%emt 0:00:23] [#]} (28. a5 $17) 28... Nh5 $1 {[%emt 0:01:30]} 29. Raa2 {[%emt 0:00:15]} Ng3+ {[%emt 0:02:30]} 30. Ke1 {[%emt 0:00:03]} f5 {[%emt 0:01:30]} 31. exf5 {[%emt 0:03:23]} Nxf5 {[%emt 0:01:30]} 32. Qd3 {[%emt 0:00:54]} Qf6 {[%emt 0:06:30]} 33. Bg1 {[%emt 0:01:11]} (33. Rf2 $142) 33... Rg3 {[%emt 0:02:30]} 34. Bh2 {[%emt 0:00:54]} R3g7 $2 {[%emt 0:02:30]} (34... h3 35. Bxg3 Rxg3 36. gxh3 Rg1+ 37. Kd2 {[#]} Nd4 $1 {[%mdl 512]}) 35. c5 $2 {[%emt 0:00:31] [#]} (35. Rf2) 35... Nd4 {[%emt 0:03:30]} (35... h3 $142 $1 {[%mdl 512]} 36. g4 {[#]} (36. gxh3 Qh4+) 36... e4 $1 {[%mdl 512]} 37. fxe4 Rxg4) 36. Rf2 {[%emt 0:00:59]} Qg6 {[%emt 0:03:47]} 37. Qd1 $2 {[%emt 0:03:19]} ({White has to play} 37. Qxg6 $15 Rxg6 38. Kf1) 37... Qf7 {[%emt 0:02:14]} 38. Rad2 {[%emt 0:05:11]} Qxd5 {[%emt 0:01:05]} 39. cxd6 {[%emt 0:00:16]} cxd6 {[%emt 0:00:19]} 40. Qb1 {[%emt 0:00:36]} Kb8 {[%emt 0:03:37]} 41. Kf1 $2 {[%emt 0:00:22]} (41. Qe4 Qxe4+ 42. fxe4) 41... Rc8 {[%emt 0:01:00]} 42. Qe1 {[%emt 0:01:09]} Rgc7 {[%emt 0:03:43]} 43. Kg1 {[%emt 0:00:47]} Rc1 {[%emt 0:01:07]} 44. Rd1 {[%emt 0:00:02]} Nxf3+ {[%emt 0:00:38]} 0-1

[Event "TUR-ch Veterans 2020"]
[Site "Antalya-Belek"]
[Date "2020.01.25"]
[Round "9"]
[White "Tasan, Mehmet Askin"]
[Black "Ozates, Veysel"]
[Result "1-0"]
[ECO "D17"]
[WhiteElo "1877"]
[BlackElo "1617"]
[Annotator "NA RC"]
[PlyCount "53"]
[EventDate "2020.01.19"]
[EventCountry "TUR"]
[SourceTitle "playchess.com"]
[Source "ChessBase"]
[SourceQuality "1"]
[TimeControl "5400+30"]

{[%evp 8,43,18,27,25,4,-2,32767,32767,32767,32767,32767,32767,32767,109,32767,32767,185,204,67,47,25,43,16,32767,32767,32767,32767,58,55,169,208,220,200,209,32767,283,293]} 1. Nf3 {[%emt 0:00:30]} d5 {[%emt 0:00:30]} 2. d4 {[%emt 0:00:30]} Nf6 {[%emt 0:00:30]} 3. c4 {[%emt 0:00:30]} c6 {[%emt 0:00:00]} 4. Nc3 {[%emt 0:00:30]} dxc4 {[%emt 0:00:00]} 5. a4 {[%emt 0:00:30]} Bf5 {[%emt 0:00:30]} 6. Ne5 {[%emt 0:00:00]} e6 {[%emt 0:02:30]} 7. Nxc4 {[%emt 0:03:00]} Nbd7 {[%emt 0:01:30]} 8. g3 {[%emt 0:02:30]} Be7 {[%emt 0:01:30] D17: Slav Defence: 5 a4 Bf5: Lines with 6 Nh4 and 6 Ne5} (8... Nb6 9. Ne3 Bg6 10. a5 Nbd5 11. a6 Bb4 12. Nexd5 Qxd5 13. axb7 Rb8 14. Qa4 Rxb7 15. Qxb4 Rxb4 16. Nxd5 cxd5 17. Rxa7 {½-½ (43) Harikrishna,P (2650)-Miton,K (2653) Torrelavega 2007}) 9. Bg2 {[%emt 0:00:30]} Qc7 $146 {[%emt 0:02:30]} ({Predecessor:} 9... O-O 10. e4 Bg6 11. O-O Rc8 12. Be3 Bb4 13. f3 a5 14. Na2 Nb6 15. Nxb6 Qxb6 16. Nxb4 Qxb4 {1-0 (34) Schmidt,W (2332)-Niedbal,P (1801) Police 2015}) 10. O-O {[%emt 0:00:30]} e5 {[%emt 0:08:30]} 11. dxe5 {[%emt 0:04:30]} Nxe5 {[%emt 0:01:30]} 12. Bf4 {[%emt 0:02:30]} Nfd7 {[%emt 0:00:30] [#]} 13. Qd4 {[%emt 0:00:30]} ({Better is} 13. Rc1 $1 $18) 13... f6 {[%emt 0:00:30]} 14. Rfd1 {[%emt 0:08:30]} O-O {[%emt 0:04:30]} 15. Nxe5 {[%emt 0:10:30]} Nxe5 {[%emt 0:03:30]} 16. a5 {[%emt 0:02:30]} Rfd8 {[%emt 0:04:30]} 17. Qa4 {[%emt 0:01:30]} Rxd1+ {[%emt 0:04:30]} 18. Rxd1 {[%emt 0:00:30]} Bc5 {[%emt 0:09:30]} ({Black should try} 18... Kh8 $14) 19. a6 {[%emt 0:06:30]} b5 {[%emt 0:03:30] [#]} 20. Nxb5 $1 {[%emt 0:03:30] Pin} Qb6 {[%emt 0:10:30]} ({Don't blunder} 20... cxb5 $2 21. Qa2+ Kf8 22. Bxa8 $18) 21. Nd4 {[%emt 0:01:30]} Bg6 {[%emt 0:06:30]} 22. e3 $18 {[%emt 0:04:30]} ({Less strong is} 22. Bxc6 Rd8 $11) ({Don't take} 22. Nxc6 $6 Nxc6 23. Bxc6 Rc8 $18) 22... Rc8 {[%emt 0:04:30]} 23. Bxe5 {[%emt 0:01:30]} fxe5 {[%emt 0:00:30]} 24. Nxc6 {[%emt 0:09:30]} Be8 {[%emt 0:02:30]} 25. Qc4+ {[%emt 0:02:30]} Bf7 {[%emt 0:02:30]} 26. Ne7+ {[%emt 0:02:30]} Kf8 {[%emt 0:00:30]} 27. Nxc8 {[%emt 0:00:00]} 1-0

[Event "TUR-ch Veterans 2020"]
[Site "Antalya-Belek"]
[Date "2020.01.25"]
[Round "9"]
[White "Ozmen, Halil Nejat"]
[Black "Kocak, Sabri"]
[Result "1/2-1/2"]
[ECO "A45"]
[WhiteElo "1789"]
[BlackElo "2086"]
[Annotator "NA RC"]
[PlyCount "82"]
[EventDate "2020.01.19"]
[EventCountry "TUR"]
[SourceTitle "playchess.com"]
[Source "ChessBase"]
[SourceQuality "1"]
[TimeControl "5400+30"]

1. d4 {[%emt 0:00:30]} Nf6 {[%emt 0:00:30]} 2. Bg5 {[%emt 0:00:00]} Ne4 {[%emt 0:00:30]} 3. Bh4 {[%emt 0:00:00]} c5 {[%emt 0:02:30]} 4. Nd2 {[%emt 0:00:30]} Qa5 {[%emt 0:02:30]} (4... Nxd2 5. Qxd2 cxd4 6. Nf3 Nc6 7. Nxd4 Qb6 8. O-O-O Nxd4 9. Qxd4 Qxd4 10. Rxd4 e5 11. Rd3 d6 12. e3 {½-½ (22) Ivanchuk,V (2726)-Areshchenko,A (2655) Lvov 2014}) 5. c3 {[%emt 0:00:30]} Nxd2 {[%emt 0:00:30]} 6. Qxd2 {[%emt 0:00:30] A45: Trompowsky Attack} cxd4 {[%emt 0:00:30]} 7. cxd4 {[%emt 0:01:30]} Qxd2+ {[%emt 0:00:30]} 8. Kxd2 {[%emt 0:00:30]} e6 {[%emt 0:01:30]} 9. a3 {[%emt 0:00:30]} d5 $146 {[%emt 0:02:30]} ({Predecessor:} 9... Nc6 10. e3 b6 11. b4 Bb7 12. Bg3 {1-0 (86) Mamedyarov,S (2595)-Romero Holmes,A (2544) Benidorm 2003}) 10. e3 {[%emt 0:00:30]} Bd7 {[%emt 0:00:30]} 11. Nf3 {[%emt 0:03:30]} f6 {[%emt 0:00:30]} 12. Bd3 {[%emt 0:00:30]} Nc6 {[%emt 0:00:00]} 13. Rhc1 {[%emt 0:00:00]} Be7 {[%emt 0:05:00]} 14. Rc3 {[%emt 0:01:00]} O-O {[%emt 0:00:30]} 15. Rac1 {[%emt 0:00:30]} Bd8 {[%emt 0:00:30]} 16. Ke2 {[%emt 0:00:30]} Bb6 {[%emt 0:00:30]} 17. Bg3 {[%emt 0:00:30]} Rfe8 {[%emt 0:01:30]} 18. Bb1 {[%emt 0:08:30]} Rad8 {[%emt 0:06:30]} 19. Ba2 {[%emt 0:00:30]} Bc8 {[%emt 0:00:30]} 20. b4 {[%emt 0:00:30]} a6 {[%emt 0:02:30]} 21. Kf1 {[%emt 0:02:30]} g5 {[%emt 0:02:30]} 22. h3 {[%emt 0:00:30]} Kg7 {[%emt 0:00:00]} 23. Bb3 {[%emt 0:00:30]} h5 {[%emt 0:01:00]} 24. Ba4 {[%emt 0:06:30]} Bd7 {[%emt 0:00:30]} 25. Bxc6 {[%emt 0:09:30]} bxc6 {[%emt 0:08:30]} 26. Rxc6 {[%emt 0:00:30]} Rc8 {[%emt 0:17:30]} 27. Rxc8 {[%emt 0:01:30]} Rxc8 {[%emt 0:00:30]} 28. Rxc8 {[%emt 0:00:30]} Bxc8 {[%emt 0:00:30]} 29. Bd6 {[%emt 0:00:00]} Kf7 {[%emt 0:00:30]} 30. Ke2 {[%emt 0:00:00]} Ke8 {[%emt 0:00:30]} 31. Kd3 {[%emt 0:00:30]} (31. h4 $16) 31... Bd7 {[%emt 0:03:30]} 32. g3 {[%emt 0:03:30]} Bb5+ {[%emt 0:02:30]} 33. Kc3 {[%emt 0:00:30]} Kd7 {[%emt 0:02:30]} 34. Bc5 {[%emt 0:00:00]} Bc7 {[%emt 0:00:00]} 35. h4 {[%emt 0:02:00]} Be2 {[%emt 0:01:00]} 36. Ne1 {[%emt 0:03:30]} gxh4 {[%emt 0:00:30]} 37. gxh4 {[%emt 0:00:30]} f5 {[%emt 0:08:30]} 38. Kd2 {[%emt 0:00:30]} Bg4 {[%emt 0:02:30]} (38... Bb5 $14) 39. f3 {[%emt 0:01:30]} Bh3 {[%emt 0:00:30]} 40. Nd3 {[%emt 0:00:30]} Bg3 $16 {[%emt 0:00:30]} 41. Nf4 {[%emt 0:00:30]} Bxf4 {[%emt 0:00:30]} 1/2-1/2